bitfinex/quotes_BTCUSD_20240828
["timestamp","ask_amount","ask_price","bid_price","bid_amount"]
[1724825308272,0.02817723,59504.0,59503.0,2.09513627]
[1724825309256,0.02817723,59504.0,59503.0,2.10613627]
[1724825309436,0.02917723,59504.0,59503.0,2.10613627]
[1724825309640,0.02917723,59504.0,59503.0,2.13082983]
[1724825311587,0.02917723,59504.0,59503.0,2.48501649]
[1724825311742,0.002818,59504.0,59503.0,2.46694683]
[1724825311962,0.002818,59504.0,59503.0,2.48501647]
[1724825312365,0.002818,59504.0,59503.0,2.48501609]
[1724825314894,0.02917582,59504.0,59503.0,2.48501609]
[1724825318658,0.02917582,59504.0,59503.0,2.02641367]
[1724825318882,0.02917582,59504.0,59503.0,2.14389909]
[1724825319108,0.02917582,59504.0,59503.0,2.02641367]
[1724825319344,0.02917582,59504.0,59503.0,1.42627182]
[1724825319563,0.02917582,59504.0,59503.0,0.88198556]
[1724825320022,0.03378638,59504.0,59503.0,0.88198556]
[1724825320260,0.03178638,59504.0,59503.0,0.86498556]
[1724825320490,0.02717582,59504.0,59503.0,0.87398556]
[1724825320714,0.02817582,59504.0,59503.0,0.87398556]
[1724825320947,0.02717582,59504.0,59503.0,0.86498556]
[1724825321180,0.02917582,59504.0,59503.0,1.03569476]
[1724825322892,0.02817582,59504.0,59503.0,1.02569476]
[1724825323290,0.02917582,59504.0,59503.0,1.03469476]
[1724825326447,0.02917582,59504.0,59503.0,1.8391683]
[1724825326857,0.02917582,59504.0,59503.0,1.23717368]
[1724825327060,0.18637582,59504.0,59503.0,0.88298556]
[1724825327461,0.19096444,59504.0,59503.0,0.88298556]
[1724825327798,0.37256444,59504.0,59503.0,0.018]
[1724825329035,0.37156444,59504.0,59503.0,0.009]
[1724825329636,0.1591,59503.0,59502.0,0.168061]
[1724825330212,0.1636509,59503.0,59502.0,0.168061]
[1724825330420,0.3486509,59503.0,59502.0,0.168061]
[1724825331055,0.3486509,59503.0,59502.0,0.169061]
[1724825333715,0.3486509,59503.0,59502.0,0.172061]
[1724825335560,0.3484486,59503.0,59502.0,0.004]
[1724825335803,0.8526236,59503.0,59502.0,0.004]
[1724825336258,0.90276396,59503.0,59502.0,0.004]
[1724825336680,0.8526236,59503.0,59502.0,0.003]
[1724825337023,0.1857,59500.0,59496.0,0.168076]
[1724825337428,0.353767,59500.0,59496.0,0.168076]
[1724825337635,0.353767,59500.0,59493.0,0.0008998]
[1724825337636,0.0045509,59499.0,59493.0,0.0008998]
[1724825337846,0.1935,59498.0,59493.0,0.0008998]
[1724825338119,1.176567,59495.0,59493.0,0.0008998]
[1724825338349,1.370067,59495.0,59493.0,0.0008998]
[1724825338511,1.55038554,59495.0,59493.0,0.0008998]
[1724825338869,1.55038554,59495.0,59494.0,0.0028998]
[1724825338870,1.72559609,59495.0,59494.0,0.0028998]
[1724825339731,1.65038554,59495.0,59494.0,0.0028998]
[1724825339949,1.89414773,59495.0,59494.0,0.0028998]
[1724825340160,2.15463554,59495.0,59494.0,0.0008998]
[1724825340405,2.16663554,59495.0,59494.0,0.0018998]
[1724825340554,2.23788955,59495.0,59494.0,0.0018998]
[1724825340962,2.23888955,59495.0,59494.0,0.0018998]
[1724825341162,2.22988955,59495.0,59494.0,0.0008998]
[1724825341361,2.16663554,59495.0,59494.0,0.0018998]
[1724825341567,2.17763554,59495.0,59494.0,0.0028998]
[1724825341782,2.16563554,59495.0,59494.0,0.0018998]
[1724825342192,2.21276679,59495.0,59494.0,0.0008998]
[1724825342754,2.16263554,59495.0,59494.0,0.0008998]
[1724825343373,2.15463554,59495.0,59494.0,0.0008998]
[1724825343767,2.16463554,59495.0,59494.0,0.0018998]
[1724825344216,2.23976856,59495.0,59494.0,0.0018998]
[1724825344415,2.22976856,59495.0,59494.0,0.0008998]
[1724825344615,2.23776856,59495.0,59494.0,0.0018998]
[1724825344988,2.24676856,59495.0,59494.0,0.0028998]
[1724825345203,2.15463554,59495.0,59494.0,0.0008998]
[1724825345465,2.23976856,59495.0,59494.0,0.0018998]
[1724825345672,2.16463554,59495.0,59494.0,0.0018998]
[1724825346363,2.21468729,59495.0,59494.0,0.0018998]
[1724825346729,2.21568729,59495.0,59494.0,0.0018998]
[1724825347075,2.17863554,59495.0,59494.0,0.0018998]
[1724825347488,2.19263554,59495.0,59494.0,0.0028998]
[1724825353718,0.336171,59494.0,59442.0,0.2526547]
[1724825353925,0.319108,59486.0,59481.0,0.16812]
[1724825354131,0.50425,59485.0,59479.0,0.33625]
[1724825354536,0.03018478,59484.0,59480.0,0.168122]
[1724825355218,0.00394965,59483.0,59481.0,0.168119]
[1724825355730,0.00394965,59483.0,59480.0,0.168122]
[1724825356527,0.00394965,59483.0,59481.0,0.168119]
[1724825356767,0.00394965,59483.0,59482.0,0.1886]
[1724825357798,0.00494965,59483.0,59482.0,0.1886]
[1724825358219,0.00394965,59483.0,59482.0,0.1886]
[1724825358452,0.00494965,59483.0,59482.0,0.1886]
[1724825359180,0.50919965,59483.0,59480.0,0.168123]
[1724825359419,0.50819965,59483.0,59480.0,0.366623]
[1724825360075,0.50819965,59483.0,59481.0,0.16812]
[1724825360909,0.50819965,59483.0,59481.0,0.1690198]
[1724825361668,0.50819965,59483.0,59481.0,0.1690188]
[1724825363892,0.50819965,59483.0,59482.0,0.81667795]
[1724825364089,0.50819965,59483.0,59482.0,0.96367795]
[1724825364339,0.50425,59483.0,59482.0,1.29991395]
[1724825364732,0.50819719,59483.0,59482.0,1.18239]
[1724825367343,0.50919719,59483.0,59482.0,1.18239]
[1724825367749,0.50819719,59483.0,59482.0,1.18239]
[1724825367951,0.50919719,59483.0,59482.0,1.18239]
[1724825368347,0.50819719,59483.0,59482.0,1.18239]
[1724825369816,0.50819719,59483.0,59482.0,0.1948]
[1724825370033,0.50819719,59483.0,59481.0,0.0108998]
[1724825370816,0.50919719,59483.0,59482.0,0.168118]
[1724825371269,0.50819719,59483.0,59482.0,0.168118]
[1724825371669,0.50919719,59483.0,59482.0,0.168118]
[1724825372097,0.50919719,59483.0,59482.0,0.688754]
[1724825372887,0.50819719,59483.0,59482.0,0.855654]
[1724825373142,0.50819719,59483.0,59482.0,0.519418]
[1724825373315,0.50819719,59483.0,59482.0,0.855654]
[1724825373521,0.50919719,59483.0,59482.0,0.855654]
[1724825375979,0.50919719,59483.0,59482.0,0.99010694]
[1724825376463,0.50919719,59483.0,59482.0,0.855654]
[1724825378368,0.67039719,59483.0,59481.0,0.0108998]
[1724825378579,0.72046748,59483.0,59481.0,0.0108998]
[1724825378795,0.83799143,59483.0,59481.0,0.0108998]
[1724825379018,0.21833767,59482.0,59481.0,0.0108998]
[1724825379229,0.22202401,59482.0,59481.0,0.0108998]
[1724825379487,0.72627401,59482.0,59481.0,0.0108998]
[1724825379712,0.67605434,59482.0,59481.0,0.0108998]
[1724825380545,1.77215585,59482.0,59481.0,0.0108998]
[1724825380764,1.72316758,59482.0,59481.0,0.0108998]
[1724825381187,1.84871676,59482.0,59481.0,0.0108998]
[1724825381623,1.72316758,59482.0,59481.0,0.0108998]
[1724825381825,1.72716758,59482.0,59481.0,0.0108998]
[1724825382033,1.72316758,59482.0,59481.0,0.0108998]
[1724825382492,1.73116758,59482.0,59481.0,0.0108998]
[1724825382950,1.72816758,59482.0,59481.0,0.0108998]
[1724825383163,1.73216758,59482.0,59481.0,0.0108998]
[1724825384028,1.83158182,59482.0,59481.0,0.0108998]
[1724825384232,1.70582634,59482.0,59481.0,0.0108998]
[1724825384442,1.83157253,59482.0,59481.0,0.0108998]
[1724825385119,1.30334349,59482.0,59481.0,0.0108998]
[1724825385474,1.17714418,59482.0,59481.0,0.0108998]
[1724825385695,1.30289733,59482.0,59481.0,0.0108998]
[1724825386114,1.30289285,59482.0,59481.0,0.0108998]
[1724825386521,2.0928888,59482.0,59481.0,0.0108998]
[1724825386750,2.6201248,59482.0,59481.0,0.0108998]
[1724825386977,2.7201248,59482.0,59481.0,0.0108998]
[1724825387408,2.7251248,59482.0,59481.0,0.0108998]
[1724825387813,2.7201248,59482.0,59481.0,0.0108998]
[1724825388027,2.90360167,59482.0,59481.0,0.0108998]
[1724825388235,2.773853,59482.0,59481.0,0.0108998]
[1724825388442,2.766853,59482.0,59481.0,0.0108998]
[1724825388645,2.97475061,59482.0,59481.0,0.0108998]
[1724825389059,2.96875061,59482.0,59481.0,0.0108998]
[1724825389273,2.97475061,59482.0,59481.0,0.0108998]
[1724825390106,2.96875061,59482.0,59481.0,0.0108998]
[1724825390549,2.96175061,59482.0,59481.0,0.0108998]
[1724825390909,2.97275061,59482.0,59481.0,0.0108998]
[1724825392312,2.98175061,59482.0,59481.0,0.0108998]
[1724825393078,2.81319897,59482.0,59481.0,0.0108998]
[1724825393284,2.51419815,59482.0,59481.0,0.0108998]
[1724825393487,2.17796215,59482.0,59481.0,0.0108998]
[1724825395188,2.19556211,59482.0,59481.0,0.0108998]
[1724825397023,2.19638011,59482.0,59481.0,0.0108998]
[1724825398491,1.97903414,59482.0,59481.0,0.0108998]
[1724825398924,2.0543761,59482.0,59481.0,0.0108998]
[1724825400710,1.97903414,59482.0,59481.0,0.0108998]
[1724825400948,0.72170803,59482.0,59481.0,0.2084998]
[1724825401170,0.76471139,59482.0,59481.0,0.2084998]
[1724825401400,1.10094739,59482.0,59481.0,0.2084998]
[1724825401615,0.76471139,59482.0,59481.0,0.2084998]
[1724825402303,0.76471139,59482.0,59481.0,0.0108998]
[1724825402304,2.0785803,59482.0,59481.0,0.0108998]
[1724825402547,2.17905931,59482.0,59481.0,0.0108998]
[1724825402797,1.8719803,59482.0,59481.0,0.0108998]
[1724825402997,1.3869443,59482.0,59481.0,0.2153998]
[1724825403233,1.4623077,59482.0,59481.0,0.2153998]
[1724825403461,1.3869443,59482.0,59481.0,0.0108998]
[1724825407426,1.48742331,59482.0,59481.0,0.0108998]
[1724825407837,1.3869443,59482.0,59481.0,0.0108998]
[1724825408767,1.48742331,59482.0,59481.0,0.0108998]
[1724825409334,1.48747161,59482.0,59481.0,0.0108998]
[1724825411933,1.48749111,59482.0,59481.0,0.0108998]
[1724825412287,1.3869443,59482.0,59481.0,0.0108998]
[1724825413272,1.41328613,59482.0,59481.0,0.0108998]
[1724825413622,1.51383472,59482.0,59481.0,0.0108998]
[1724825414097,1.51382956,59482.0,59481.0,0.0108998]
[1724825414794,1.41328613,59482.0,59481.0,0.0108998]
[1724825416454,1.75258613,59482.0,59481.0,0.0108998]
[1724825416894,2.18882213,59482.0,59481.0,0.0108998]
[1724825418249,2.30640486,59482.0,59481.0,0.0108998]
[1724825418689,2.4749565,59482.0,59481.0,0.0108998]
[1724825419185,2.62587814,59482.0,59481.0,0.0108998]
[1724825420110,2.50829541,59482.0,59481.0,0.0108998]
[1724825420299,2.35737377,59482.0,59481.0,0.0108998]
[1724825420549,2.18882213,59482.0,59481.0,0.0108998]
[1724825424116,2.33984834,59482.0,59481.0,0.0108998]
[1724825425578,2.18882213,59482.0,59481.0,0.0108998]
[1724825425811,2.3398916,59482.0,59481.0,0.0108998]
[1724825426028,2.1509916,59482.0,59481.0,0.0108998]
[1724825426498,1.51328613,59482.0,59481.0,0.0108998]
[1724825426720,1.84952213,59482.0,59481.0,0.0108998]
[1724825428292,2.36457377,59482.0,59481.0,0.0108998]
[1724825429059,2.19602213,59482.0,59481.0,0.0108998]
[1724825430620,2.34709206,59482.0,59481.0,0.0108998]
[1724825431041,2.19602213,59482.0,59481.0,0.0108998]
[1724825431252,2.34709327,59482.0,59481.0,0.0108998]
[1724825431668,2.19768519,59482.0,59481.0,0.0108998]
[1724825432043,2.34875705,59482.0,59481.0,0.0108998]
[1724825432475,2.34876347,59482.0,59481.0,0.0108998]
[1724825433752,2.19768519,59482.0,59481.0,0.0108998]
[1724825434174,1.86144919,59482.0,59481.0,0.0108998]
[1724825434804,1.51494919,59482.0,59481.0,0.0108998]
[1724825436871,1.68350083,59482.0,59481.0,0.0108998]
[1724825437006,1.83457592,59482.0,59481.0,0.0108998]
[1724825437233,1.68350083,59482.0,59481.0,0.0108998]
[1724825437434,1.51494919,59482.0,59481.0,0.0108998]
[1724825440168,1.63251075,59482.0,59481.0,0.0108998]
[1724825443781,0.96003875,59482.0,59481.0,0.1994998]
[1724825447176,1.45287475,59482.0,59481.0,0.0108998]
[1724825447620,1.62142639,59482.0,59481.0,0.0108998]
[1724825449823,1.45287475,59482.0,59481.0,0.0108998]
[1724825450055,1.29627475,59482.0,59481.0,0.0108998]
[1724825454418,0.96003875,59482.0,59481.0,0.3449998]
[1724825457531,0.96003875,59482.0,59481.0,0.1942998]
[1724825457942,1.29627475,59482.0,59481.0,0.1942998]
[1724825460582,0.96003875,59482.0,59481.0,0.1942998]
[1724825460799,0.67435919,59482.0,59481.0,0.3510998]
[1724825461045,0.67435919,59482.0,59481.0,0.5192198]
[1724825461443,0.76557892,59482.0,59481.0,0.3510998]
[1724825462290,0.79191956,59482.0,59481.0,0.3510998]
[1724825462496,0.76557892,59482.0,59481.0,0.3510998]
[1724825464273,0.64801736,59482.0,59481.0,0.3510998]
[1724825464473,0.77390531,59482.0,59481.0,0.5192198]
[1724825464885,0.67390531,59482.0,59481.0,0.47027268]
[1724825465091,0.54801736,59482.0,59481.0,0.3510998]
[1724825465443,0.67390531,59482.0,59481.0,0.3510998]
[1724825468010,0.67390531,59482.0,59481.0,0.1942998]
[1724825468152,0.83369692,59482.0,59481.0,0.1942998]
[1724825468566,0.86003732,59482.0,59481.0,0.1942998]
[1724825468765,1.53250932,59482.0,59481.0,0.0108998]
[1724825468980,1.87190932,59482.0,59481.0,0.0108998]
[1724825469180,2.02299072,59482.0,59481.0,0.0108998]
[1724825469377,1.87190932,59482.0,59481.0,0.0108998]
[1724825469995,1.75704776,59482.0,59481.0,0.0108998]
[1724825470477,2.3618354,59482.0,59481.0,0.0108998]
[1724825472235,2.19328376,59482.0,59481.0,0.0108998]
[1724825477312,2.00978376,59482.0,59481.0,0.0108998]
[1724825477539,1.85388376,59482.0,59481.0,0.0108998]
[1724825477848,1.51764776,59482.0,59481.0,0.0108998]
[1724825478050,1.18141176,59482.0,59481.0,0.3542998]
[1724825479012,1.18141176,59482.0,59481.0,0.1999998]
[1724825479407,1.15507136,59482.0,59481.0,0.1999998]
[1724825479608,1.51764845,59482.0,59481.0,0.1999998]
[1724825479778,1.18141245,59482.0,59481.0,0.1999998]
[1724825481803,1.8175133,59482.0,59481.0,0.0108998]
[1724825482003,1.66644845,59482.0,59481.0,0.0108998]
[1724825483755,1.66644845,59482.0,59481.0,0.2032998]
[1724825483756,1.51764845,59482.0,59481.0,0.2032998]
[1724825484260,1.51764845,59482.0,59481.0,0.0108998]
[1724825488973,1.66868411,59482.0,59481.0,0.0108998]
[1724825489436,1.70714845,59482.0,59481.0,0.0108998]
[1724825490048,1.82471165,59482.0,59481.0,0.0108998]
[1724825491701,1.63521165,59482.0,59481.0,0.0108998]
[1724825493776,1.51764845,59482.0,59481.0,0.0108998]
[1724825495752,1.51764845,59482.0,59481.0,0.2039998]
[1724825498351,1.96541165,59482.0,59481.0,0.0108998]
[1724825501402,1.78101165,59482.0,59481.0,0.0108998]
[1724825504445,1.93211889,59482.0,59481.0,0.0108998]
[1724825504645,1.78101165,59482.0,59481.0,0.0108998]
[1724825507805,1.93211889,59482.0,59481.0,0.0108998]
[1724825510393,2.26835489,59482.0,59481.0,0.0108998]
[1724825510524,2.30314765,59482.0,59481.0,0.0108998]
[1724825514669,1.66877642,59482.0,59481.0,0.0108998]
[1724825514871,1.18141245,59482.0,59481.0,0.20857978]
[1724825515096,1.51764845,59482.0,59481.0,0.20857978]
[1724825515456,1.51764845,59482.0,59481.0,0.1918998]
[1724825515667,1.66877094,59482.0,59481.0,0.1918998]
[1724825515845,1.51764845,59482.0,59481.0,0.1918998]
[1724825518045,1.51764845,59482.0,59481.0,0.3485998]
[1724825518046,0.67705845,59482.0,59481.0,0.3485998]
[1724825518258,0.65071736,59482.0,59481.0,0.3485998]
[1724825518470,0.81883536,59482.0,59481.0,0.3485998]
[1724825518689,0.65071736,59482.0,59481.0,0.3485998]
[1724825518926,0.98695336,59482.0,59481.0,0.3485998]
[1724825519132,1.15507136,59482.0,59481.0,0.3485998]
[1724825519551,1.18141172,59482.0,59481.0,0.3485998]
[1724825519791,0.55071736,59482.0,59481.0,0.3485998]
[1724825520876,0.5331174,59482.0,59481.0,0.5167198]
[1724825521087,0.65908619,59482.0,59481.0,0.5167198]
[1724825522354,0.65908619,59482.0,59481.0,0.3485998]
[1724825522759,0.5331174,59482.0,59481.0,0.3485998]
[1724825524593,0.5331174,59482.0,59481.0,0.60201798]
[1724825524803,0.58349314,59482.0,59481.0,1.27449998]
[1724825525017,0.5331174,59482.0,59481.0,1.61074098]
[1724825525240,0.52943106,59482.0,59481.0,1.61074098]
[1724825525471,0.53248307,59482.0,59481.0,1.61074098]
[1724825525894,0.52148307,59482.0,59481.0,1.5254428]
[1724825526092,0.52148307,59482.0,59481.0,0.8529608]
[1724825526093,0.51248307,59482.0,59481.0,0.8529608]
[1724825526296,0.51348307,59482.0,59481.0,1.1892018]
[1724825526503,0.51548307,59482.0,59481.0,1.1892018]
[1724825526926,0.51348307,59482.0,59481.0,1.1892018]
[1724825527397,0.51448307,59482.0,59481.0,1.1892018]
[1724825527598,0.51348307,59482.0,59481.0,1.1892018]
[1724825527712,0.51348307,59482.0,59481.0,0.8529608]
[1724825528134,0.51348307,59482.0,59481.0,0.8539608]
[1724825528729,0.51348307,59482.0,59481.0,0.8529608]
[1724825528934,0.51348307,59482.0,59481.0,0.8539608]
[1724825531210,0.51348307,59482.0,59481.0,1.1902018]
[1724825531381,0.51348307,59482.0,59481.0,1.018363]
[1724825531604,0.51348307,59482.0,59481.0,0.8539608]
[1724825533954,0.68160107,59482.0,59481.0,0.0118998]
[1724825534151,1.42954405,59482.0,59481.0,0.0118998]
[1724825534489,1.35407307,59482.0,59481.0,0.0118998]
[1724825535366,1.35407307,59482.0,59481.0,0.0108998]
[1724825535861,1.02083707,59482.0,59481.0,0.0108998]
[1724825536075,1.01783707,59482.0,59481.0,0.0108998]
[1724825536295,0.68560107,59482.0,59481.0,0.0108998]
[1724825536759,0.78514313,59482.0,59481.0,0.0108998]
[1724825537011,0.62002513,59482.0,59481.0,0.22070298]
[1724825537298,0.51948307,59482.0,59481.0,0.22070298]
[1724825537524,0.68760107,59482.0,59481.0,0.22070298]
[1724825537742,0.68760107,59482.0,59481.0,0.2027998]
[1724825538427,0.68360107,59482.0,59481.0,0.2027998]
[1724825538650,1.02183707,59482.0,59481.0,0.2027998]
[1724825538894,1.0691119,59482.0,59481.0,0.2027998]
[1724825539125,1.0701119,59482.0,59481.0,0.2027998]
[1724825540110,0.5657579,59482.0,59481.0,0.25529288]
[1724825540340,0.9019939,59482.0,59481.0,0.2027998]
[1724825541049,0.7338759,59482.0,59481.0,0.2027998]
[1724825541267,0.5657579,59482.0,59481.0,0.2027998]
[1724825541504,0.7338759,59482.0,59481.0,0.2027998]
[1724825542189,0.68360107,59482.0,59481.0,0.2027998]
[1724825545976,0.51548307,59482.0,59481.0,0.2027998]
[1724825546190,0.73387427,59482.0,59481.0,0.2027998]
[1724825547331,0.68360107,59482.0,59481.0,0.2027998]
[1724825547534,1.07011027,59482.0,59481.0,0.2027998]
[1724825547739,1.21581027,59482.0,59481.0,0.0108998]
[1724825547956,1.21381027,59482.0,59481.0,0.0108998]
[1724825548395,1.16453707,59482.0,59481.0,0.0108998]
[1724825548606,1.34473707,59482.0,59481.0,0.0108998]
[1724825549017,1.78152999,59482.0,59481.0,0.0108998]
[1724825549225,1.68097307,59482.0,59481.0,0.0108998]
[1724825549416,1.80731516,59482.0,59481.0,0.0108998]
[1724825550279,1.81131516,59482.0,59481.0,0.0108998]
[1724825550480,1.91066059,59482.0,59481.0,0.0108998]
[1724825551139,1.78497307,59482.0,59481.0,0.0108998]
[1724825551565,1.78097307,59482.0,59481.0,0.0108998]
[1724825551766,1.77997307,59482.0,59481.0,0.0108998]
[1724825551971,1.90966059,59482.0,59481.0,0.0108998]
[1724825552178,1.91466059,59482.0,59481.0,0.0108998]
[1724825552381,1.90966059,59482.0,59481.0,0.0108998]
[1724825552957,1.91466059,59482.0,59481.0,0.0108998]
[1724825553464,1.91466378,59482.0,59481.0,0.0108998]
[1724825555555,1.91467962,59482.0,59481.0,0.0108998]
[1724825556174,2.03224282,59482.0,59481.0,0.0108998]
[1724825557007,1.90653627,59482.0,59481.0,0.0108998]
[1724825558456,1.72533627,59482.0,59481.0,0.0108998]
[1724825561445,2.1873125,59482.0,59481.0,0.0108998]
[1724825561651,2.06157227,59482.0,59481.0,0.0108998]
[1724825561856,2.08791427,59482.0,59481.0,0.0108998]
[1724825562315,2.08391427,59482.0,59481.0,0.0108998]
[1724825562548,2.08591427,59482.0,59481.0,0.0108998]
[1724825563053,2.09591427,59482.0,59481.0,0.0108998]
[1724825563291,2.44496591,59482.0,59481.0,0.0108998]
[1724825563520,2.45396591,59482.0,59481.0,0.0108998]
[1724825563756,2.27641427,59482.0,59481.0,0.0108998]
[1724825564643,2.26941427,59482.0,59481.0,0.0108998]
[1724825565110,2.27641427,59482.0,59481.0,0.0108998]
[1724825565406,2.28641427,59482.0,59481.0,0.0108998]
[1724825565632,2.27941427,59482.0,59481.0,0.0108998]
[1724825565865,2.27841427,59482.0,59481.0,0.0108998]
[1724825566067,2.28941427,59482.0,59481.0,0.0108998]
[1724825568586,2.45796591,59482.0,59481.0,0.0108998]
[1724825568784,2.45796591,59482.0,59471.0,0.0438996]
[1724825568785,0.504438,59472.0,59471.0,0.0438996]
[1724825568989,0.336299,59471.0,59468.0,0.0249996]
[1724825569165,0.672404,59470.0,59464.0,0.336333]
[1724825569379,0.17286439,59469.0,59465.0,0.168164]
[1724825569576,0.50425,59468.0,59464.0,0.336337]
[1724825570161,0.00470939,59467.0,59461.0,0.336354]
[1724825570378,0.50425,59466.0,59461.0,0.336354]
[1724825570800,0.50425,59466.0,59464.0,0.168168]
[1724825570939,0.00470939,59465.0,59463.0,0.168171]
[1724825571139,0.50425,59464.0,59463.0,0.168171]
[1724825571547,0.53062854,59464.0,59463.0,0.9249454]
[1724825571867,0.53533793,59464.0,59463.0,0.9249454]
[1724825572188,0.53533793,59464.0,59463.0,1.2553454]
[1724825572341,0.53633793,59464.0,59463.0,1.2553454]
[1724825573141,0.53733793,59464.0,59463.0,1.2553454]
[1724825573550,0.53733793,59464.0,59463.0,1.5916884]
[1724825573965,0.53733793,59464.0,59463.0,1.5076]
[1724825574997,0.53733793,59464.0,59463.0,1.53169288]
[1724825576396,0.53733793,59464.0,59463.0,1.54977384]
[1724825579715,0.53733793,59464.0,59463.0,1.53169288]
[1724825579898,0.53733793,59464.0,59463.0,1.54977342]
[1724825581789,0.53733793,59464.0,59463.0,1.71650708]
[1724825582198,0.53733793,59464.0,59463.0,1.5076]
[1724825582796,0.53733793,59464.0,59463.0,1.52568097]
[1724825582997,0.53733793,59464.0,59463.0,1.5076]
[1724825583397,0.53733793,59464.0,59463.0,1.52568082]
[1724825584201,0.53733793,59464.0,59463.0,1.52658062]
[1724825584772,0.53733793,59464.0,59463.0,1.5084998]
[1724825584886,0.53733793,59464.0,59463.0,1.5265809]
[1724825585803,0.53733793,59464.0,59463.0,1.52658086]
[1724825587641,0.53562435,59464.0,59463.0,1.52658086]
[1724825587847,0.53562435,59464.0,59463.0,1.5084998]
[1724825589213,0.53562435,59464.0,59463.0,1.67357088]
[1724825589381,0.53562435,59464.0,59463.0,1.69165174]
[1724825590690,0.53562435,59464.0,59463.0,1.52658066]
[1724825590917,0.53562435,59464.0,59463.0,1.626063]
[1724825592468,1.23562435,59464.0,59463.0,1.626063]
[1724825596957,1.23562435,59464.0,59463.0,1.64414417]
[1724825597170,1.23562435,59464.0,59463.0,1.626063]
[1724825598517,1.23562435,59464.0,59463.0,1.0274568]
[1724825598986,1.23562435,59464.0,59463.0,1.14502]
[1724825599411,1.23562435,59464.0,59463.0,0.5054138]
[1724825601028,1.23562435,59464.0,59463.0,0.8417568]
[1724825601233,1.23562435,59464.0,59463.0,0.5054138]
[1724825604183,1.23562435,59464.0,59463.0,0.1690708]
[1724825604386,1.23562435,59464.0,59463.0,0.2845855]
[1724825604603,1.23562435,59464.0,59463.0,0.5054138]
[1724825607657,0.69542435,59464.0,59463.0,0.5054138]
[1724825610733,1.39542435,59464.0,59463.0,0.5054138]
[1724825611410,1.39542435,59464.0,59463.0,0.118463]
[1724825611790,1.56359235,59464.0,59463.0,0.118463]
[1724825613649,1.56359235,59464.0,59463.0,0.0008998]
[1724825613855,1.23562435,59464.0,59463.0,0.9748412]
[1724825613999,1.23562435,59464.0,59463.0,1.30060115]
[1724825614199,1.23562435,59464.0,59463.0,1.63694415]
[1724825614399,1.23091496,59464.0,59463.0,1.618863]
[1724825614839,1.23544034,59464.0,59463.0,1.618863]
[1724825615044,1.23544034,59464.0,59463.0,1.7807493]
[1724825616328,0.53544034,59464.0,59463.0,1.7807493]
[1724825618371,0.53544034,59464.0,59463.0,1.13792]
[1724825619243,0.53544034,59464.0,59463.0,0.622977]
[1724825619489,1.23544034,59464.0,59463.0,0.622977]
[1724825619710,1.23544034,59464.0,59463.0,0.95932]
[1724825620148,1.23625834,59464.0,59463.0,0.95932]
[1724825622542,1.23625834,59464.0,59463.0,0.622977]
[1724825624608,1.23625834,59464.0,59463.0,0.5054138]
[1724825625489,1.38895834,59464.0,59463.0,0.0008998]
[1724825625718,1.55712634,59464.0,59463.0,0.0008998]
[1724825626320,1.38895834,59464.0,59463.0,0.0008998]
[1724825628059,1.55712634,59464.0,59463.0,0.0008998]
[1724825628492,1.96905881,59464.0,59463.0,0.0008998]
[1724825628921,1.89346334,59464.0,59463.0,0.0008998]
[1724825629341,1.55712634,59464.0,59463.0,0.0008998]
[1724825629560,1.60749918,59464.0,59463.0,0.0008998]
[1724825629766,1.55712634,59464.0,59463.0,0.0008998]
[1724825630151,1.75152634,59464.0,59463.0,0.0008998]
[1724825630589,2.08786334,59464.0,59463.0,0.0008998]
[1724825631372,2.13822851,59464.0,59463.0,0.0008998]
[1724825632205,2.08786334,59464.0,59463.0,0.0008998]
[1724825632397,2.13822553,59464.0,59463.0,0.0008998]
[1724825633826,1.80188853,59464.0,59463.0,0.0008998]
[1724825634624,1.80188338,59464.0,59463.0,0.0008998]
[1724825635958,1.75152634,59464.0,59463.0,0.0008998]
[1724825636163,1.801883,59464.0,59463.0,0.0008998]
[1724825638495,2.13822,59464.0,59463.0,0.0008998]
[1724825639048,2.1382175,59464.0,59463.0,0.0008998]
[1724825639254,2.4745545,59464.0,59463.0,0.0008998]
[1724825639462,2.4735545,59464.0,59463.0,0.0008998]
[1724825640127,2.1362175,59464.0,59463.0,0.0008998]
[1724825641895,2.1362175,59464.0,59463.0,0.5194428]
[1724825641896,1.2846125,59464.0,59463.0,0.5194428]
[1724825642110,1.23425834,59464.0,59463.0,0.7663544]
[1724825642534,1.23425834,59464.0,59463.0,1.1026974]
[1724825642960,1.22973296,59464.0,59463.0,1.1026974]
[1724825643168,1.23408161,59464.0,59463.0,1.1026974]
[1724825643822,1.23508161,59464.0,59463.0,1.0239568]
[1724825644035,1.23408161,59464.0,59463.0,1.0239568]
[1724825645276,1.23408161,59464.0,59463.0,0.6876138]
[1724825646685,1.23408161,59464.0,59463.0,0.5054138]
[1724825647509,0.53408161,59464.0,59463.0,0.5054138]
[1724825650536,1.23408161,59464.0,59463.0,0.5054138]
[1724825661342,1.28445706,59464.0,59463.0,0.5054138]
[1724825661789,1.28446741,59464.0,59463.0,0.5054138]
[1724825663504,1.28446741,59464.0,59463.0,0.9572999]
[1724825663505,1.23408161,59464.0,59463.0,0.9572999]
[1724825663728,1.23408161,59464.0,59463.0,0.6209569]
[1724825663939,1.23408161,59464.0,59463.0,0.9509569]
[1724825664340,1.23408161,59464.0,59463.0,1.2872999]
[1724825664342,0.53408161,59464.0,59463.0,1.64830033]
[1724825664782,0.53408161,59464.0,59463.0,1.67130033]
[1724825665404,0.53508161,59464.0,59463.0,1.67130033]
[1724825666696,0.53408161,59464.0,59463.0,1.67130033]
[1724825667126,0.53508161,59464.0,59463.0,1.67130033]
[1724825667342,0.53408161,59464.0,59463.0,1.67130033]
[1724825667553,0.53508161,59464.0,59463.0,1.67130033]
[1724825667758,0.53508161,59464.0,59463.0,1.67630033]
[1724825667991,0.53608161,59464.0,59463.0,1.67630033]
[1724825668421,0.53508161,59464.0,59463.0,1.67630033]
[1724825668847,0.53608161,59464.0,59463.0,2.01264333]
[1724825669061,0.53508161,59464.0,59463.0,2.01264333]
[1724825669675,0.000818,59466.0,59465.0,1.857994]
[1724825669894,0.0271921,59466.0,59465.0,2.14079059]
[1724825670337,0.0271921,59466.0,59465.0,2.13879059]
[1724825670993,0.0281921,59466.0,59465.0,2.13879059]
[1724825671201,0.0291921,59466.0,59465.0,2.13879059]
[1724825676260,0.0291921,59466.0,59465.0,2.13579059]
[1724825676461,0.0291921,59466.0,59465.0,2.13879059]
[1724825676661,0.0291921,59466.0,59465.0,2.13579059]
[1724825678007,0.0291921,59466.0,59465.0,1.64295859]
[1724825679157,0.0291921,59466.0,59465.0,1.64385839]
[1724825683179,0.002818,59466.0,59465.0,1.64385839]
[1724825684960,0.02919204,59466.0,59465.0,1.64385839]
[1724825695569,0.02919204,59466.0,59465.0,1.46085839]
[1724825695993,0.03317353,59466.0,59465.0,1.46085839]
[1724825696199,0.02919204,59466.0,59465.0,1.46085839]
[1724825700496,0.02919204,59466.0,59465.0,1.43785839]
[1724825704431,0.02919204,59466.0,59465.0,1.64875839]